fUSD/lending_fUSD_20241114
["ID","MTS","AMOUNT","RATE_DAILY","PERIOD"]
[342230828,1731604232183,-3086.58429135,9.7e-05,2]
[342230829,1731604232193,-150.0,9.711e-05,2]
[342230830,1731604232202,-150.0,9.711e-05,2]
[342230831,1731604232211,-150.0,9.713e-05,2]
[342230832,1731604232220,-793.26,9.713e-05,2]
[342230833,1731604232229,-3184.43,9.713e-05,2]
[342230834,1731604232239,-150.99,9.713e-05,2]
[342230835,1731604232248,-150.0,9.725e-05,2]
[342230836,1731604232257,-150.0,9.726e-05,2]
[342230837,1731604232266,-150.0,9.731e-05,2]
[342230838,1731604232275,-150.0,9.732e-05,2]
[342230839,1731604232284,-150.0,9.735e-05,2]
[342230840,1731604232293,-150.0,9.736e-05,2]
[342230841,1731604232303,-150.0,9.736e-05,2]
[342230842,1731604232311,-150.0,9.737e-05,2]
[342230843,1731604232320,-150.0,9.74e-05,2]
[342230844,1731604232330,-1500.0,9.74e-05,2]
[342230845,1731604232339,-1073.09825002,9.741e-05,2]
[342230846,1731604232348,-1500.0,9.741e-05,2]
[342230847,1731604232362,-150.0,9.742e-05,2]
[342230849,1731604232374,-150.0,9.742e-05,2]
[342230851,1731604232383,-150.0,9.742e-05,2]
[342230853,1731604232392,-150.0,9.743e-05,2]
[342230855,1731604232401,-150.0,9.746e-05,2]
[342230857,1731604232411,-150.0,9.746e-05,2]
[342230859,1731604232420,-150.0,9.747e-05,2]
[342230861,1731604232429,-150.0,9.749e-05,2]
[342230863,1731604232438,-150.0,9.751e-05,2]
[342230865,1731604232447,-1500.0,9.751e-05,2]
[342230867,1731604232456,-150.0,9.753e-05,2]
[342230869,1731604232466,-1500.0,9.753e-05,2]
[342230871,1731604232475,-150.0,9.754e-05,2]
[342230872,1731604232484,-1500.0,9.755e-05,2]
[342230874,1731604232493,-150.0,9.758e-05,2]
[342230876,1731604232502,-150.0,9.758e-05,2]
[342230877,1731604232511,-1500.0,9.759e-05,2]
[342230878,1731604232521,-150.0,9.759e-05,2]
[342230879,1731604232530,-150.0,9.761e-05,2]
[342230880,1731604232540,-150.0,9.762e-05,2]
[342230881,1731604232550,-150.0,9.763e-05,2]
[342230882,1731604232559,-150.0,9.764e-05,2]
[342230883,1731604232568,-1095.44069305,9.764e-05,2]
[342230884,1731604232578,-150.0,9.768e-05,2]
[342230885,1731604232590,-150.0,9.769e-05,2]
[342230886,1731604232599,-150.0,9.77e-05,2]
[342230887,1731604232611,-150.0,9.77e-05,2]
[342230888,1731604232620,-150.0,9.771e-05,2]
[342230889,1731604232629,-150.0,9.774e-05,2]
[342230890,1731604232639,-150.0,9.774e-05,2]
[342230891,1731604232649,-1500.0,9.774e-05,2]
[342230892,1731604232659,-150.0,9.775e-05,2]
[342230893,1731604232668,-150.0,9.775e-05,2]
[342230894,1731604232681,-150.0,9.778e-05,2]
[342230895,1731604232694,-150.0,9.779e-05,2]
[342230896,1731604232702,-48690.47760949,9.78e-05,2]
[342230897,1731604232712,-37873.4214,9.78e-05,2]
[342230898,1731604232722,-1000.0,9.78e-05,2]
[342230899,1731604232731,-1597.5272518,9.78e-05,2]
[342230900,1731604232744,-292.91088579,9.78e-05,2]
[342230901,1731604232767,-98109.56186241,9.78e-05,2]
[342230902,1731604232776,-150.0,9.78e-05,2]
[342230903,1731604232786,-1500.0,9.78e-05,2]
[342230904,1731604232795,-1500.0,9.78e-05,2]
[342230905,1731604232804,-1500.0,9.783e-05,2]
[342230906,1731604232813,-150.0,9.784e-05,2]
[342230907,1731604232823,-150.0,9.784e-05,2]
[342230908,1731604233183,-1500.0,9.785e-05,2]
[342230909,1731604233203,-150.0,9.788e-05,2]
[342230910,1731604233212,-150.0,9.79e-05,2]
[342230911,1731604233222,-1500.0,9.79e-05,2]
[342230912,1731604233231,-161.5486981,9.791e-05,2]
[342230913,1731604233240,-150.0,9.791e-05,2]
[342230914,1731604233249,-150.0,9.792e-05,2]
[342230915,1731604233258,-1495.0,9.792e-05,2]
[342230916,1731604233268,-150.0,9.793e-05,2]
[342230917,1731604233277,-150.0,9.796e-05,2]
[342230918,1731604233286,-1500.0,9.797e-05,2]
[342230919,1731604233295,-150.0,9.798e-05,2]
[342230920,1731604233304,-150.0,9.8e-05,2]
[342230921,1731604233313,-150.0,9.805e-05,2]
[342230922,1731604233323,-150.0,9.808e-05,2]
[342230923,1731604233332,-1500.0,9.809e-05,2]
[342230924,1731604233342,-150.0,9.811e-05,2]
[342230925,1731604233351,-150.0,9.813e-05,2]
[342230926,1731604233363,-1500.0,9.814e-05,2]
[342230927,1731604233373,-150.0,9.815e-05,2]
[342230928,1731604233381,-150.0,9.815e-05,2]
[342230929,1731604233390,-1500.0,9.816e-05,2]
[342230930,1731604233399,-150.0,9.818e-05,2]
[342230931,1731604233409,-150.0,9.819e-05,2]
[342230932,1731604233419,-150.0,9.819e-05,2]
[342230933,1731604233428,-150.0,9.821e-05,2]
[342230934,1731604233437,-150.0,9.822e-05,2]
[342230935,1731604233447,-1500.0,9.823e-05,2]
[342230936,1731604233457,-1500.0,9.824e-05,2]
[342230937,1731604233467,-150.0,9.825e-05,2]
[342230938,1731604233476,-150.0,9.825e-05,2]
[342230939,1731604233486,-1500.0,9.825e-05,2]
[342230940,1731604233495,-150.0,9.826e-05,2]
[342230941,1731604233505,-150.0,9.829e-05,2]
[342230942,1731604233514,-150.0,9.83e-05,2]
[342230943,1731604233523,-150.0,9.83e-05,2]
[342230944,1731604233533,-150.0,9.835e-05,2]
[342230945,1731604233542,-150.0,9.835e-05,2]
[342230946,1731604233552,-150.0,9.836e-05,2]
[342230947,1731604233562,-150.0,9.84e-05,2]
[342230948,1731604233571,-150.0,9.84e-05,2]
[342230949,1731604233581,-150.0,9.841e-05,2]
[342230950,1731604233590,-150.0,9.842e-05,2]
[342230951,1731604233600,-150.0,9.842e-05,2]
[342230952,1731604233613,-150.0,9.843e-05,2]
[342230953,1731604233623,-150.0,9.844e-05,2]
[342230954,1731604233633,-150.0,9.844e-05,2]
[342230955,1731604233643,-1500.0,9.848e-05,2]
[342230956,1731604233652,-150.0,9.849e-05,2]
[342230957,1731604233662,-150.0,9.852e-05,2]
[342230958,1731604233671,-1500.0,9.852e-05,2]
[342230959,1731604233682,-150.0,9.853e-05,2]
[342230960,1731604233692,-150.0,9.854e-05,2]
[342230961,1731604233701,-1500.0,9.857e-05,2]
[342230962,1731604233710,-150.0,9.863e-05,2]
[342230963,1731604233719,-150.0,9.863e-05,2]
[342230964,1731604233730,-150.0,9.863e-05,2]
[342230965,1731604233739,-150.0,9.863e-05,2]
[342230966,1731604233749,-150.0,9.864e-05,2]
[342230967,1731604233758,-150.0,9.866e-05,2]
[342230968,1731604233768,-150.0,9.869e-05,2]
[342230969,1731604233779,-150.0,9.869e-05,2]
[342230970,1731604233789,-150.0,9.87e-05,2]
[342230971,1731604233799,-1500.0,9.871e-05,2]
[342230972,1731604233809,-150.0,9.872e-05,2]
[342230973,1731604233817,-150.0,9.873e-05,2]
[342230974,1731604233825,-150.0,9.873e-05,2]
[342230975,1731604233835,-150.0,9.877e-05,2]
[342230976,1731604233844,-150.0,9.878e-05,2]
[342230977,1731604233853,-150.0,9.878e-05,2]
[342230978,1731604233866,-150.0,9.88e-05,2]
[342230979,1731604233875,-150.0,9.881e-05,2]
[342230980,1731604233885,-150.0,9.884e-05,2]
[342230981,1731604233895,-150.0,9.886e-05,2]
[342230982,1731604233905,-279.09198802,9.889e-05,2]
[342230983,1731604233914,-2500.0,9.893e-05,2]
[342230984,1731604233924,-2500.0,9.893e-05,2]
[342230985,1731604233934,-150.0,9.895e-05,2]
[342230986,1731604233943,-203.59924665,9.895e-05,2]
[342230987,1731604233952,-1500.0,9.897e-05,2]
[342230988,1731604233961,-150.0,9.9e-05,2]
[342230989,1731604233971,-1000.0,9.9e-05,2]
[342230990,1731604233980,-13639.0,9.9e-05,2]
[342230991,1731604233990,-5933.0,9.9e-05,2]
[342230992,1731604234000,-151.497,9.9e-05,2]
[342230993,1731604234009,-1160.0,9.9e-05,2]
[342230994,1731604234019,-150.0,9.901e-05,2]
[342230995,1731604234028,-150.0,9.903e-05,2]
[342230996,1731604234037,-150.0,9.904e-05,2]
[342230997,1731604234046,-150.0,9.905e-05,2]
[342230998,1731604234055,-150.0,9.905e-05,2]
[342230999,1731604234064,-150.0,9.908e-05,2]
[342231000,1731604234074,-150.0,9.908e-05,2]
[342231001,1731604234084,-150.0,9.913e-05,2]
[342231002,1731604234093,-1500.0,9.914e-05,2]
[342231003,1731604234102,-1500.0,9.915e-05,2]
[342231004,1731604234113,-150.0,9.915e-05,2]
[342231005,1731604234122,-150.0,9.915e-05,2]
[342231006,1731604234131,-150.0,9.915e-05,2]
[342231007,1731604234141,-150.0,9.916e-05,2]
[342231008,1731604234150,-150.0,9.917e-05,2]
[342231009,1731604234159,-150.0,9.917e-05,2]
[342231010,1731604234168,-150.0,9.919e-05,2]
[342231011,1731604234178,-150.0,9.919e-05,2]
[342231012,1731604234186,-150.0,9.919e-05,2]
[342231013,1731604234195,-150.0,9.919e-05,2]
[342231014,1731604234206,-150.0,9.92e-05,2]
[342231015,1731604234215,-150.0,9.924e-05,2]
[342231016,1731604234224,-150.0,9.925e-05,2]
[342231017,1731604234233,-150.0,9.927e-05,2]
[342231018,1731604234242,-150.0,9.928e-05,2]
[342231019,1731604234252,-150.0,9.929e-05,2]
[342231020,1731604234262,-1500.0,9.933e-05,2]
[342231021,1731604234271,-1500.0,9.936e-05,2]
[342231022,1731604234280,-150.0,9.936e-05,2]
[342231023,1731604234290,-150.0,9.937e-05,2]
[342231024,1731604234300,-150.0,9.938e-05,2]
[342231025,1731604234309,-150.0,9.938e-05,2]
[342231026,1731604234318,-150.0,9.939e-05,2]
[342231027,1731604234327,-1500.0,9.94e-05,2]
[342231028,1731604234337,-150.0,9.941e-05,2]
[342231029,1731604234346,-433.2,9.943e-05,2]
[342231030,1731604234355,-150.0,9.944e-05,2]
[342231031,1731604234368,-150.0,9.945e-05,2]
[342231032,1731604234377,-1500.0,9.945e-05,2]
[342231033,1731604234387,-1500.0,9.946e-05,2]
[342231034,1731604234396,-150.0,9.946e-05,2]
[342231035,1731604234406,-150.0,9.947e-05,2]
[342231036,1731604234415,-150.0,9.947e-05,2]
[342231037,1731604234425,-150.0,9.949e-05,2]
[342231038,1731604234434,-150.0,9.95e-05,2]
[342231039,1731604234444,-150.0,9.95e-05,2]
[342231040,1731604234453,-150.0,9.955e-05,2]
[342231041,1731604234462,-150.0,9.956e-05,2]
[342231042,1731604234472,-150.0,9.959e-05,2]
[342231043,1731604234481,-150.0,9.96e-05,2]
[342231044,1731604234491,-150.0,9.96e-05,2]
[342231045,1731604234501,-150.0,9.96e-05,2]
[342231046,1731604234511,-150.0,9.962e-05,2]
[342231047,1731604234521,-150.0,9.964e-05,2]
[342231048,1731604234531,-150.0,9.965e-05,2]
[342231049,1731604234540,-150.0,9.965e-05,2]
[342231050,1731604234549,-150.0,9.966e-05,2]
[342231051,1731604234560,-150.0,9.966e-05,2]
[342231052,1731604234570,-1500.0,9.966e-05,2]
[342231053,1731604234580,-150.0,9.967e-05,2]
[342231054,1731604234589,-150.0,9.967e-05,2]
[342231055,1731604234598,-1597.742,9.967e-05,2]
[342231056,1731604234610,-174.685,9.967e-05,2]
[342231057,1731604234619,-150.0,9.968e-05,2]
[342231058,1731604234629,-150.0,9.968e-05,2]
[342231059,1731604234638,-150.0,9.969e-05,2]
[342231060,1731604234648,-1500.0,9.97e-05,2]
[342231061,1731604234657,-150.0,9.97e-05,2]
[342231062,1731604234666,-150.0,9.972e-05,2]
[342231063,1731604234675,-150.0,9.972e-05,2]
[342231064,1731604234688,-500.0,9.973e-05,2]
[342231065,1731604234698,-500.0,9.973e-05,2]
[342231066,1731604234707,-260.5300956,9.973e-05,2]
[342231067,1731604234717,-500.0,9.973e-05,2]
[342231068,1731604234728,-150.0,9.975e-05,2]
[342231069,1731604234737,-1500.0,9.977e-05,2]
[342231070,1731604234747,-150.0,9.982e-05,2]
[342231071,1731604234757,-1500.0,9.984e-05,2]
[342231072,1731604234769,-150.0,9.985e-05,2]
[342231073,1731604234779,-1500.0,9.987e-05,2]
[342231074,1731604234788,-2911.9132199,9.99e-05,2]
[342231075,1731604234799,-6990.4039374,9.99e-05,2]
[342231076,1731604234808,-755.09857496,9.99e-05,2]
[342231077,1731604234818,-800.0,9.992e-05,2]
[342231078,1731604234828,-1000.0,9.992e-05,2]
[342231079,1731604234837,-160.0,9.992e-05,2]
[342231080,1731604234846,-361708.16282628,9.993e-05,2]
[342231081,1731604234862,-426347.14567049,9.993e-05,2]
[342231086,1731604238165,-1091.0,9.9e-05,2]
[342231087,1731604238174,-79.98719829,9.973e-05,2]
[342231088,1731604238186,-403.8453013,9.973e-05,2]
[342231089,1731604238195,-4564.27678661,9.993e-05,2]
[342231090,1731604238207,-108203.36941223,9.993e-05,2]
[342231091,1731604238232,-4135.69596332,9.993e-05,2]
[342231092,1731604238251,-4267.06473156,9.993e-05,2]
[342231093,1731604238263,-1404.95242468,9.993e-05,2]
[342231203,1731604239948,-950.5251772,9.993e-05,2]
[342231204,1731604239959,-708.84499998,9.993e-05,2]
[342231205,1731604240006,-381.63983307,9.993e-05,2]
[342231206,1731604240016,-470.59406132,9.993e-05,2]
[342231207,1731604240121,-4450.9,9.993e-05,2]
[342231208,1731604240132,-812.1742665,9.993e-05,2]
[342231209,1731604240179,-1276.58413817,9.993e-05,2]
[342231216,1731604243036,-7048.70739946,9.993e-05,2]
[342231217,1731604243100,-3563.05630229,9.993e-05,2]
[342231218,1731604243115,-5991.53489997,9.993e-05,2]
[342231219,1731604243126,-646.12000003,9.993e-05,2]
[342231220,1731604243163,-1677.45520766,9.993e-05,2]
[342231221,1731604243175,-40846.74999394,9.993e-05,2]
[342231222,1731604243186,-53344.18603805,9.993e-05,2]
[342231223,1731604243226,-257.81535851,9.993e-05,2]
[342231224,1731604243306,-0.02867773,9.993e-05,2]
[342231225,1731604243317,-4007.79999926,9.993e-05,2]
[342231421,1731604246019,-200.0,9.893e-05,2]
[342231422,1731604246029,-16573.43720112,9.993e-05,2]
[342231423,1731604246150,-89178.63548683,9.993e-05,2]
[342231424,1731604531659,1387.89,8.219e-05,2]
[342231430,1731604759036,3871.0742062,0.0002,60]
[342231431,1731605105155,417.078,0.000217,120]
[342231432,1731605228158,-186.03494352,8.709e-05,2]
[342231433,1731605229117,-1285.29505648,8.709e-05,2]
[342231434,1731605229140,-224.0,8.756e-05,2]
[342231435,1731605229163,-209.16,8.777e-05,2]
[342231436,1731605229188,-250.0,8.781e-05,2]
[342231437,1731605229210,-1000.0,8.852e-05,2]
[342231438,1731605229234,-1040.67173837,8.882e-05,2]
[342231439,1731605249097,-7291.46837033,8.882e-05,2]
[342231444,1731605351830,-1798.8998913,8.882e-05,2]
[342231445,1731605351851,-250.0,8.882e-05,2]
[342231446,1731605351872,-203.79380181,8.949e-05,2]
[342231449,1731605354112,-46.20619819,8.949e-05,2]
[342231450,1731605375346,315.39420181,8.865e-05,2]
[342231603,1731605433676,-294.303997,8.865e-05,2]
[342231605,1731605433688,-7496.30180119,8.865e-05,2]
[342231607,1731605433697,-150.0,9e-05,2]
[342231609,1731605433707,-800.0,9e-05,3]
[342231612,1731605433718,-1700.0,9.1e-05,3]
[342231614,1731605433728,-2500.0,9.2e-05,3]
[342231616,1731605433738,-8729.0,9.221e-05,2]
[342231617,1731605433750,-167.0,9.221e-05,2]
[342231619,1731605433760,-3400.0,9.3e-05,3]
[342231621,1731605433770,-4200.0,9.4e-05,3]
[342231623,1731605433780,-860.71,9.478e-05,2]
[342231626,1731605433790,-800.0,9.5e-05,3]
[342231628,1731605433800,-800.0,9.6e-05,3]
[342231629,1731605433810,-2820.52,9.67e-05,2]
[342231631,1731605433820,-433.2,9.678e-05,2]
[342231633,1731605433830,-433.2,9.678e-05,2]
[342231636,1731605433841,-433.2,9.678e-05,2]
[342231638,1731605433851,-433.2,9.678e-05,2]
[342231640,1731605433861,-150.0,9.679e-05,2]
[342231642,1731605433871,-895.2185,9.68e-05,2]
[342231644,1731605433880,-1000.0,9.68e-05,2]
[342231646,1731605433890,-485.2899,9.68e-05,2]
[342231648,1731605433899,-4591.0265,9.68e-05,2]
[342231650,1731605433908,-317.8528,9.68e-05,2]
[342231652,1731605433917,-800.0,9.7e-05,3]
[342231654,1731605433927,-1461.0,9.7e-05,2]
[342231656,1731605433936,-800.0,9.8e-05,3]
[342231658,1731605433947,-224.0,9.851e-05,2]
[342231660,1731605433956,-200.0,9.893e-05,2]
[342231662,1731605433966,-760.3732,9.893e-05,2]
[342231664,1731605433976,-1013.8061,9.893e-05,2]
[342231666,1731605433985,-1169.66521553,9.893e-05,2]
[342231668,1731605434000,-1330.33478447,9.893e-05,2]
[342231670,1731605434010,-2500.0,9.893e-05,2]
[342231672,1731605434020,-2500.0,9.893e-05,2]
[342231674,1731605434029,-14197.81759583,9.9e-05,2]
[342231676,1731605434042,-1321.14999999,9.9e-05,2]
[342231680,1731605434075,-555.05850133,9.9e-05,2]
[342231683,1731605434088,-3738.39346314,9.9e-05,2]
[342231723,1731605438192,-2902.36577507,9.9e-05,2]
[342231724,1731605438203,-1383.0,9.9e-05,3]
[342231725,1731605438212,-1050.0,9.9e-05,2]
[342231726,1731605438223,-500.0,9.913e-05,2]
[342231727,1731605438232,-174.684,9.929e-05,2]
[342231728,1731605438243,-1710.057,9.939e-05,2]
[342231729,1731605438256,-1000.0,9.959e-05,2]
[342231730,1731605438266,-500.0,9.973e-05,2]
[342231731,1731605438276,-500.0,9.973e-05,2]
[342231732,1731605438285,-627.1938694,9.973e-05,2]
[342231733,1731605438294,-500.0,9.973e-05,2]
[342231734,1731605438304,-13890.10911578,9.98e-05,2]
[342231735,1731605438315,-4115.39844193,9.98e-05,2]
[342231736,1731605438338,-23140.64123932,9.98e-05,2]
[342231737,1731605438348,-211.0916542,9.983e-05,2]
[342231738,1731605438357,-9499.7405208,9.99e-05,2]
[342231739,1731605438366,-747.5911001,9.99e-05,2]
[342231740,1731605438376,-1986.0931462,9.99e-05,2]
[342231741,1731605438385,-617.4451368,9.99e-05,2]
[342231742,1731605438395,-1677.37339294,9.992e-05,2]
[342231743,1731605438404,-1765908.45338929,9.993e-05,2]
[342231744,1731605438415,-492498.89183799,9.993e-05,2]
[342231745,1731605438427,-31237.58315375,9.993e-05,2]
[342231746,1731605438438,-629.74,9.993e-05,2]
[342231773,1731605440044,-3982.55,9.993e-05,2]
[342231774,1731605440056,-4938.76860355,9.993e-05,2]
[342231775,1731605440071,-457.0860186,9.993e-05,2]
[342231776,1731605440132,-531.899998,9.993e-05,2]
[342231777,1731605440146,-366.498113,9.993e-05,2]
[342231778,1731605440158,-1500.0,9.993e-05,2]
[342231779,1731605440218,-257.82970698,9.993e-05,2]
[342231780,1731605440311,-5265.99999998,9.993e-05,2]
[342232062,1731605443042,-32560.84887126,9.993e-05,2]
[342232077,1731605443191,-87181.056695,9.993e-05,2]
[342232079,1731605443203,-2999.89175077,9.993e-05,2]
[342232082,1731605443214,-432.51097949,9.993e-05,2]
[342232084,1731605443225,-366.37816138,9.993e-05,2]
[342232086,1731605443238,-44031.17274264,9.993e-05,2]
[342232088,1731605443252,-11095.47182561,9.993e-05,2]
[342232091,1731605443269,-1044.3,9.993e-05,2]
[342232093,1731605443280,-3500.0,9.993e-05,2]
[342232096,1731605443299,-1000.0,9.993e-05,2]
[342232354,1731605446064,-1199.39416244,9.993e-05,2]
[342232356,1731605446080,-2047.75000387,9.993e-05,2]
[342232360,1731605446171,-16703.90259479,9.993e-05,2]
[342232361,1731605446320,-20.67054931,9.993e-05,2]
[342232362,1731605446332,-67741.27916201,9.993e-05,2]
[342232363,1731605446351,-486.40200188,9.993e-05,2]
[342232364,1731605446363,-1057.6,9.993e-05,2]
[342232419,1731605477857,1525.67,8.219e-05,2]
[342232422,1731606350837,-1449.38,8.219e-05,2]
[342232423,1731606350863,-206.99,8.819e-05,2]
[342232424,1731606350888,-150.0,8.849e-05,2]
[342232425,1731606350914,-1000.0,8.861e-05,2]
[342232426,1731606350940,-206.99,8.863e-05,2]
[342232427,1731606350969,-665.6,8.882e-05,2]
[342232428,1731606350996,-250.0,8.882e-05,2]
[342232429,1731606351021,-71.04,8.887e-05,2]
[342232430,1731606403368,-1056.91715656,8.849e-05,2]
[342232431,1731606403397,-250.0,8.862e-05,2]
[342232432,1731606403426,-1056.91715654,8.863e-05,2]
[342232433,1731606403452,-500.0,8.868e-05,3]
[342232434,1731606403481,-136.1656869,8.882e-05,2]
[342232435,1731606427124,-113.8343131,8.882e-05,2]
[342232436,1731606427146,-161.99,8.887e-05,2]
[342232437,1731606427169,-150.0,9.726e-05,2]
[342232438,1731606427192,-150.0,9.728e-05,2]
[342232439,1731606427215,-150.0,9.729e-05,2]
[342232440,1731606427237,-150.0,9.729e-05,2]
[342232441,1731606427260,-150.0,9.731e-05,2]
[342232442,1731606427286,-150.0,9.732e-05,2]
[342232443,1731606427309,-150.0,9.732e-05,2]
[342232444,1731606427331,-150.0,9.735e-05,2]
[342232445,1731606427355,-150.0,9.737e-05,2]
[342232446,1731606427378,-150.0,9.737e-05,2]
[342232447,1731606427401,-150.0,9.739e-05,2]
[342232448,1731606427424,-865.44,9.74e-05,2]
[342232449,1731606427448,-150.0,9.741e-05,2]
[342232450,1731606427471,-150.0,9.742e-05,2]
[342232451,1731606427497,-150.0,9.744e-05,2]
[342232452,1731606427521,-150.0,9.748e-05,2]
[342232453,1731606427548,-150.0,9.753e-05,2]
[342232454,1731606427571,-150.0,9.757e-05,2]
[342232455,1731606427594,-150.0,9.76e-05,2]
[342232456,1731606427616,-150.0,9.761e-05,2]
[342232457,1731606427639,-150.0,9.762e-05,2]
[342232458,1731606427661,-150.0,9.768e-05,2]
[342232459,1731606427684,-150.0,9.769e-05,2]
[342232460,1731606427712,-113.88732131,9.771e-05,2]
[342232461,1731606441751,-36.11267869,9.771e-05,2]
[342232462,1731606441774,-150.0,9.775e-05,2]
[342232463,1731606441799,-150.0,9.777e-05,2]
[342232464,1731606441821,-150.0,9.778e-05,2]
[342232465,1731606441842,-150.0,9.78e-05,2]
[342232466,1731606441863,-150.0,9.782e-05,2]
[342232467,1731606441885,-15.12875465,9.783e-05,2]
[342232469,1731606567323,166.4,8.882e-05,2]
[342232474,1731606632322,-1000.0,9.7e-05,2]
[342232475,1731606632333,-134.87124535,9.783e-05,2]
[342232476,1731606632343,-150.0,9.783e-05,2]
[342232477,1731606632353,-150.0,9.79e-05,2]
[342232478,1731606632363,-150.0,9.796e-05,2]
[342232479,1731606632373,-150.0,9.796e-05,2]
[342232480,1731606632383,-150.0,9.797e-05,2]
[342232481,1731606632393,-150.0,9.797e-05,2]
[342232482,1731606632402,-150.0,9.797e-05,2]
[342232483,1731606632412,-150.0,9.8e-05,2]
[342232484,1731606632422,-1000.0,9.8e-05,2]
[342232485,1731606632433,-10.70939597,9.804e-05,2]
[342232486,1731606632444,-139.29060403,9.804e-05,2]
[342232487,1731606632454,-150.0,9.807e-05,2]
[342232488,1731606632463,-150.0,9.807e-05,2]
[342232489,1731606632478,-150.0,9.807e-05,2]
[342232490,1731606632487,-150.0,9.808e-05,2]
[342232491,1731606632497,-150.0,9.814e-05,2]
[342232492,1731606632507,-150.0,9.814e-05,2]
[342232493,1731606632519,-150.0,9.815e-05,2]
[342232494,1731606632529,-150.0,9.816e-05,2]
[342232495,1731606632539,-150.0,9.821e-05,2]
[342232497,1731606632552,-150.0,9.824e-05,2]
[342232499,1731606632562,-150.0,9.825e-05,2]
[342232500,1731606632572,-150.0,9.848e-05,2]
[342232502,1731606632581,-150.0,9.849e-05,2]
[342232504,1731606632591,-150.0,9.853e-05,2]
[342232506,1731606632601,-150.0,9.856e-05,2]
[342232507,1731606632611,-150.0,9.858e-05,2]
[342232508,1731606632620,-150.0,9.859e-05,2]
[342232509,1731606632630,-150.0,9.86e-05,2]
[342232510,1731606632640,-150.0,9.86e-05,2]
[342232511,1731606632650,-150.0,9.861e-05,2]
[342232513,1731606632659,-300.0,9.864e-05,2]
[342232514,1731606632669,-300.0,9.864e-05,2]
[342232515,1731606632681,-150.0,9.865e-05,2]
[342232516,1731606632690,-150.0,9.865e-05,2]
[342232517,1731606632700,-150.0,9.866e-05,2]
[342232518,1731606632709,-150.0,9.866e-05,2]
[342232519,1731606632719,-150.0,9.867e-05,2]
[342232520,1731606632728,-150.0,9.867e-05,2]
[342232521,1731606632737,-150.0,9.869e-05,2]
[342232522,1731606632747,-150.0,9.869e-05,2]
[342232523,1731606632757,-150.0,9.873e-05,2]
[342232524,1731606632767,-150.0,9.873e-05,2]
[342232525,1731606632777,-150.0,9.877e-05,2]
[342232526,1731606632787,-150.0,9.882e-05,2]
[342232527,1731606632796,-150.0,9.886e-05,2]
[342232528,1731606632806,-150.0,9.89e-05,2]
[342232529,1731606632815,-13158.10463269,9.893e-05,2]
[342232530,1731606632835,-2373.60843279,9.893e-05,2]
[342232561,1731606639351,-150.0,9.736e-05,2]
[342232562,1731606639361,-2835.6761671,9.893e-05,2]
[342232563,1731606639373,-3578.38539213,9.893e-05,2]
[342232564,1731606639384,-4494.7370595,9.893e-05,2]
[342232565,1731606639395,-4980.83042527,9.893e-05,2]
[342232566,1731606639406,-1504.26707489,9.893e-05,2]
[342232567,1731606639437,-1530.39966,9.893e-05,2]
[342232568,1731606639453,-20536.31285563,9.893e-05,2]
[342232569,1731606639463,-6622.2294,9.893e-05,2]
[342232570,1731606639474,-1214.4905,9.893e-05,2]
[342232571,1731606639484,-1000.0,9.893e-05,2]
[342232572,1731606639493,-150.0,9.9e-05,2]
[342232573,1731606639502,-1087.0,9.9e-05,2]
[342232574,1731606639513,-150.0,9.903e-05,2]
[342232575,1731606639522,-150.0,9.904e-05,2]
[342232576,1731606639531,-150.0,9.906e-05,2]
[342232577,1731606639541,-150.0,9.907e-05,2]
[342232578,1731606639554,-150.0,9.908e-05,2]
[342232579,1731606639564,-150.0,9.91e-05,2]
[342232580,1731606639573,-500.0,9.912e-05,2]
[342232581,1731606639583,-500.0,9.912e-05,2]
[342232582,1731606639592,-500.0,9.913e-05,2]
[342232583,1731606639602,-500.0,9.913e-05,2]
[342232584,1731606639612,-500.0,9.913e-05,2]
[342232585,1731606639621,-500.0,9.913e-05,2]
[342232586,1731606639631,-150.0,9.915e-05,2]
[342232587,1731606639640,-150.0,9.917e-05,2]
[342232588,1731606639650,-150.0,9.918e-05,2]
[342232589,1731606639659,-150.0,9.918e-05,2]